bitfinex/quotes_SOLUSD_20260202
["timestamp","ask_amount","ask_price","bid_price","bid_amount"]
[1770039295906,0.5,103.57,103.54,3.5889867]
[1770039296211,0.5,103.57,103.53,3.5889867]
[1770039296628,0.5,103.57,103.51,55.0]
[1770039296629,0.5,103.56,103.52,3.5889867]
[1770039296924,0.5,103.55,103.51,58.5889867]
[1770039297322,0.5,103.55,103.51,55.0]
[1770039297627,0.5,103.53,103.5,3.5889867]
[1770039298630,0.5,103.54,103.52,3.5889867]
[1770039298836,0.5,103.56,103.52,3.5889867]
[1770039300324,0.5,103.55,103.52,3.5889867]
[1770039301131,0.5,103.55,103.5,55.0]
[1770039301331,0.5,103.55,103.51,3.5889867]
[1770039301718,0.5,103.55,103.53,3.5889867]
[1770039302328,0.5,103.56,103.54,3.5889867]
[1770039302526,0.5,103.56,103.54,3.58913277]
[1770039303033,0.5,103.56,103.53,3.58913277]
[1770039303635,0.5,103.56,103.54,3.58913277]
[1770039303934,0.5,103.56,103.51,64.94480561]
[1770039304140,0.5,103.56,103.53,3.58913277]
[1770039305115,0.1,103.61,103.56,0.49146491]
[1770039305439,0.1,103.61,103.57,3.58913277]
[1770039307022,0.45350153,103.6,103.57,3.58913277]
[1770039308819,0.55350153,103.61,103.58,4.08059768]
[1770039309024,0.55350153,103.61,103.59,3.58913277]
[1770039309922,0.55350153,103.61,103.58,3.58913277]
[1770039310126,0.55350153,103.61,103.58,4.08059768]
[1770039310528,0.45350153,103.58,103.53,0.49146491]
[1770039310733,0.45350153,103.57,103.54,4.08059768]
[1770039311530,0.45350153,103.57,103.54,0.49146491]
[1770039311754,0.45350153,103.57,103.54,4.08059768]
[1770039312053,3.58913277,103.59,103.56,3.58913277]
[1770039312054,0.45350153,103.59,103.56,3.58913277]
[1770039312265,0.45350153,103.59,103.55,4.08059768]
[1770039312424,0.45350153,103.59,103.55,9.46200401]
[1770039315439,0.45350153,103.59,103.55,8.9705391]
[1770039316428,0.45350153,103.59,103.56,8.9705391]
[1770039317539,0.45350153,103.59,103.55,8.9705391]
[1770039318059,0.45350153,103.59,103.54,0.49146491]
[1770039318060,0.45350153,103.58,103.54,8.9705391]
[1770039319161,0.45350153,103.57,103.54,8.9705391]
[1770039319951,0.45350153,103.57,103.55,8.9705391]
[1770039320264,0.45350153,103.57,103.54,8.9705391]
[1770039321560,0.45350153,103.57,103.53,0.49146491]
[1770039321561,0.45350153,103.57,103.55,8.9705391]
[1770039322465,0.45350153,103.57,103.54,8.9705391]
[1770039322642,0.45350153,103.57,103.53,8.9705391]
[1770039322849,0.45350153,103.57,103.54,8.9705391]
[1770039323369,0.1,103.61,103.56,9.46978034]
[1770039323665,0.1,103.61,103.58,8.9705391]
[1770039324546,0.1,103.61,103.57,0.49924124]
[1770039324746,0.1,103.61,103.58,8.9705391]
[1770039325483,0.45046461,103.6,103.58,8.9705391]
[1770039327074,0.45046461,103.6,103.58,8.4705391]
[1770039327280,8.9705391,103.59,103.54,9.4705391]
[1770039327475,8.9705391,103.57,103.52,0.5]
[1770039327657,8.9705391,103.56,103.51,9.4705391]
[1770039327982,8.9705391,103.55,103.51,9.4705391]
[1770039328348,8.9705391,103.56,103.51,9.4705391]
[1770039328652,8.9705391,103.56,103.52,8.9705391]
[1770039328653,4.27527085,103.56,103.52,8.9705391]
[1770039328858,4.27527085,103.57,103.53,0.5]
[1770039329170,4.27527085,103.57,103.53,9.4705391]
[1770039330476,8.9705391,103.55,103.48,9.66316137]
[1770039330774,8.9705391,103.56,103.51,9.4705391]
[1770039331761,8.9705391,103.56,103.52,8.9705391]
[1770039332676,8.9705391,103.56,103.51,9.4705391]
[1770039333254,8.9705391,103.55,103.51,9.4705391]
[1770039333469,8.9705391,103.56,103.51,9.4705391]
[1770039334477,3.5906224,103.56,103.52,0.5]
[1770039334769,3.5906224,103.56,103.51,3.5906224]
[1770039334770,3.5906224,103.55,103.51,0.5]
[1770039336053,3.5906224,103.54,103.51,0.5]
[1770039336968,3.5906224,103.54,103.5,0.5]
[1770039337272,3.5906224,103.53,103.5,0.5]
[1770039337475,3.5906224,103.54,103.5,0.5]
[1770039337657,3.5906224,103.54,103.51,0.5]
[1770039337865,0.28432314,103.56,103.51,0.5]
[1770039337866,3.5906224,103.55,103.51,0.5]
[1770039338059,3.5906224,103.55,103.51,4.0906224]
[1770039338370,3.5906224,103.55,103.51,0.5]
[1770039339359,3.5906224,103.55,103.52,0.5]
[1770039340580,3.5906224,103.54,103.52,0.5]
[1770039340877,3.5906224,103.55,103.52,0.5]
[1770039341059,3.5906224,103.54,103.52,0.5]
[1770039341461,3.5906224,103.55,103.52,0.5]
[1770039341656,3.5906224,103.54,103.51,0.5]
[1770039343361,4.27527085,103.57,103.52,0.5]
[1770039343569,3.5906224,103.55,103.52,0.5]
[1770039343879,3.5906224,103.54,103.52,0.5]
[1770039344067,3.5906224,103.55,103.52,0.5]
[1770039344663,3.5906224,103.54,103.52,0.5]
[1770039344875,3.5906224,103.55,103.52,0.5]
[1770039346183,3.5906224,103.54,103.52,0.5]
[1770039346678,3.5906224,103.55,103.52,0.5]
[1770039347883,3.5906224,103.55,103.51,0.5]
[1770039348084,3.5906224,103.54,103.51,0.5]
[1770039350293,0.28432314,103.57,103.51,0.5]
[1770039350469,3.5906224,103.54,103.51,0.5]
[1770039350876,0.28432314,103.57,103.51,0.5]
[1770039351196,3.5906224,103.56,103.52,0.5]
[1770039351688,3.5906224,103.55,103.52,0.5]
[1770039351871,0.28432314,103.57,103.52,0.5]
[1770039352193,3.5906224,103.55,103.52,0.5]
[1770039352891,0.28432314,103.57,103.52,0.5]
[1770039353090,3.5906224,103.55,103.52,0.5]
[1770039353791,3.5906224,103.54,103.52,0.5]
[1770039355297,3.5906224,103.55,103.52,0.5]
[1770039357585,3.5906224,103.54,103.52,0.5]
[1770039358082,3.5906224,103.54,103.51,3.34873942]
[1770039359000,3.5906224,103.53,103.51,3.34873942]
[1770039359291,3.5906224,103.53,103.51,2.8982748]
[1770039360690,3.5906224,103.53,103.52,0.5]
[1770039360878,3.5906224,103.53,103.51,2.8982748]
[1770039361489,3.5906224,103.54,103.51,2.8982748]
[1770039361982,31.39959399,103.57,103.52,0.5]
[1770039362289,3.5906224,103.54,103.52,0.5]
[1770039364105,3.5906224,103.54,103.51,2.8982748]
[1770039364312,3.5906224,103.54,103.52,0.5]
[1770039364493,3.59148729,103.56,103.52,0.5]
[1770039364690,3.59148729,103.57,103.53,0.5]
[1770039365087,3.59148729,103.57,103.54,0.5]
[1770039366106,3.59148729,103.58,103.55,0.5]
[1770039368510,7.86675814,103.59,103.55,0.5]
[1770039369908,4.27527085,103.59,103.56,0.5]
[1770039370093,30.43148729,103.6,103.56,0.5]
[1770039370293,3.59148729,103.6,103.56,0.5]
[1770039370695,4.37527085,103.61,103.57,0.5]
[1770039371013,3.69148729,103.61,103.58,0.5]
[1770039371924,0.1,103.61,103.58,0.5]
[1770039372622,3.69148729,103.61,103.58,0.5]
[1770039374204,3.59148729,103.59,103.56,0.5]
[1770039374409,0.1,103.61,103.57,0.5]
[1770039374611,0.1,103.61,103.58,0.5]
[1770039375508,0.1,103.61,103.58,4.09148729]
[1770039375713,0.1,103.61,103.59,0.5]
[1770039376343,3.69148729,103.61,103.59,0.5]
[1770039376908,3.69148729,103.61,103.56,0.5]
[1770039377113,3.59148729,103.59,103.55,0.5]
[1770039377415,3.59148729,103.58,103.55,0.5]
[1770039378202,3.59148729,103.56,103.53,0.5]
[1770039378401,3.59148729,103.54,103.51,2.8982748]
[1770039380828,3.59148729,103.53,103.51,2.3982748]
[1770039381209,3.59148729,103.54,103.51,2.3982748]
[1770039381618,3.59148729,103.53,103.51,2.3982748]
[1770039381928,3.59148729,103.54,103.51,2.8982748]
[1770039382620,3.59148729,103.57,103.53,0.5]
[1770039383216,3.59148729,103.57,103.54,0.5]
[1770039383926,3.59148729,103.56,103.54,0.5]
[1770039384622,3.59148729,103.57,103.54,0.5]
[1770039384825,3.59148729,103.58,103.54,0.5]
[1770039385411,4.27527085,103.59,103.52,9.65975327]
[1770039385412,7.86675814,103.59,103.56,0.5]
[1770039387929,3.59148729,103.6,103.56,0.5]
[1770039388132,3.69148729,103.61,103.57,0.5]
[1770039388916,0.1,103.61,103.55,0.5]
[1770039389118,3.59148729,103.6,103.56,0.5]
[1770039389631,3.69148729,103.61,103.57,0.5]
[1770039390012,0.1,103.61,103.58,0.5]
[1770039390314,3.69148729,103.61,103.58,0.5]
[1770039392126,3.59148729,103.6,103.56,0.5]
[1770039393431,3.69148729,103.61,103.57,0.5]
[1770039394017,3.69148729,103.61,103.58,0.5]
[1770039394734,0.1,103.61,103.59,0.5]
[1770039395640,4.37527085,103.65,103.61,0.45859545]
[1770039395824,7.96675814,103.65,103.61,0.45859545]
[1770039396433,3.69148729,103.66,103.62,0.45859545]
[1770039396632,7.96675814,103.66,103.62,0.45859545]
[1770039397353,3.69148729,103.66,103.62,0.45859545]
[1770039397524,7.96675814,103.66,103.62,0.45859545]
[1770039398528,3.69148729,103.64,103.61,0.45859545]
[1770039398736,3.59148729,103.64,103.61,0.45859545]
[1770039398944,3.69148729,103.65,103.61,0.45859545]
[1770039400229,3.69148729,103.65,103.61,4.05008274]
[1770039400932,3.69148729,103.65,103.62,0.45859545]
[1770039401547,7.96675814,103.66,103.62,0.45859545]
[1770039402346,7.86675814,103.66,103.63,0.45859545]
[1770039402548,7.96675814,103.66,103.63,0.45859545]
[1770039404238,7.96675814,103.66,103.62,0.45859545]
[1770039405048,4.27527085,103.66,103.62,0.45859545]
[1770039405250,4.47252604,103.67,103.63,0.45859545]
[1770039406128,3.59148729,103.66,103.63,0.45859545]
[1770039407058,0.78103875,103.67,103.64,0.45859545]
[1770039407359,3.59148729,103.66,103.64,0.45859545]
[1770039407660,4.47252604,103.67,103.64,0.45859545]
[1770039408252,0.78103875,103.67,103.64,0.45859545]
[1770039408445,0.88103875,103.67,103.64,0.45859545]
[1770039408633,4.47252604,103.67,103.64,0.45859545]
[1770039409655,4.37252604,103.67,103.64,0.45859545]
[1770039410246,4.47252604,103.67,103.64,0.45859545]
[1770039411655,4.37252604,103.67,103.64,0.45859545]
[1770039411952,4.37252604,103.67,103.63,3.59148729]
[1770039411953,3.69148729,103.66,103.63,0.49197302]
[1770039412150,4.47252604,103.67,103.63,55.49197302]
[1770039414144,3.59148729,103.66,103.63,55.49197302]
[1770039414342,3.69148729,103.66,103.63,55.49197302]
[1770039414545,4.47252604,103.67,103.64,0.49197302]
[1770039414753,3.59148729,103.66,103.64,0.49197302]
[1770039416043,4.47252604,103.67,103.64,0.49197302]
[1770039416251,3.69148729,103.66,103.63,0.49197302]
[1770039416655,3.59148729,103.64,103.58,55.0]
[1770039416854,3.59148729,103.64,103.6,3.59148729]
[1770039417066,4.05933828,103.64,103.6,3.59148729]
[1770039417267,4.05933828,103.64,103.59,3.59148729]
[1770039417471,4.05933828,103.63,103.58,58.59148729]
[1770039417848,27.28785099,103.66,103.6,3.59148729]
[1770039418053,0.78103875,103.67,103.65,3.59148729]
[1770039418271,0.28103875,103.67,103.65,3.59148729]
[1770039418572,0.28103875,103.67,103.62,9.93448452]
[1770039418573,6.27095154,103.69,103.66,3.59148729]
[1770039418758,6.27095154,103.69,103.67,0.49197302]
[1770039419270,5.74396331,103.69,103.67,3.59148729]
[1770039420168,5.74396331,103.69,103.63,24.26493389]
[1770039420372,5.74396331,103.69,103.67,3.59148729]
[1770039420959,5.74396331,103.69,103.68,3.59148729]
[1770039421260,0.6,103.71,103.67,3.59148729]
[1770039422366,0.6,103.71,103.65,0.14216157]
[1770039422569,0.5,103.7,103.66,3.59148729]
[1770039422771,0.5,103.68,103.65,3.59148729]
[1770039423476,0.5,103.69,103.66,3.59148729]
[1770039423657,0.5,103.7,103.66,3.59148729]
[1770039424762,0.5,103.7,103.67,3.59148729]
[1770039425076,0.5,103.7,103.64,9.6487403]
[1770039425272,4.09148729,103.7,103.66,3.59148729]
[1770039426174,0.5,103.7,103.66,3.59148729]
[1770039426374,0.6,103.71,103.67,3.57991712]
[1770039426573,0.6,103.71,103.67,58.57991712]
[1770039427076,0.6,103.71,103.67,55.0]
[1770039427387,0.5,103.7,103.67,55.0]
[1770039428181,0.5,103.68,103.67,55.0]
[1770039428375,0.5,103.68,103.65,58.57991712]
[1770039428872,4.77527085,103.7,103.67,3.57991712]
[1770039429073,0.5,103.69,103.65,58.57991712]
[1770039431881,0.5,103.69,103.65,55.0]
[1770039432086,0.5,103.68,103.65,58.57991712]
[1770039436180,0.5,103.68,103.64,3.57991712]
[1770039436384,0.5,103.68,103.64,58.57991712]
[1770039436981,0.5,103.68,103.65,3.57991712]
[1770039438774,0.5,103.68,103.62,64.65003304]
[1770039438775,0.5,103.68,103.66,3.57991712]
[1770039440394,0.5,103.69,103.66,3.57991712]
[1770039442600,0.1,103.71,103.68,3.57991712]
[1770039442801,0.6,103.71,103.68,3.57991712]
[1770039444084,0.4215906,103.72,103.7,3.57991712]
[1770039444287,0.9215906,103.72,103.69,3.57991712]
[1770039444691,0.9215906,103.72,103.66,55.0]
[1770039444894,0.4215906,103.72,103.69,3.57991712]
[1770039445099,0.9215906,103.72,103.69,3.57991712]
[1770039445594,0.9215906,103.72,103.7,3.57991712]
[1770039445793,0.9215906,103.72,103.69,3.57991712]
[1770039446103,0.4215906,103.72,103.7,3.57991712]
[1770039446302,0.5,103.75,103.71,3.57991712]
[1770039446508,0.5,103.75,103.73,3.57991712]
[1770039446701,0.1,103.77,103.7,13.22307818]
[1770039446702,0.5,103.76,103.74,3.57991712]
[1770039447307,0.6,103.77,103.74,3.57991712]
[1770039448091,0.6,103.77,103.68,26.8]
[1770039448297,0.5,103.75,103.71,3.57991712]
[1770039448711,0.5,103.76,103.73,3.57991712]
[1770039449087,0.6,103.77,103.73,3.57991712]
[1770039449405,0.1,103.77,103.75,3.57991712]
[1770039450210,0.1,103.77,103.76,3.57991712]
[1770039450709,6.17060223,103.78,103.76,3.57991712]
[1770039450911,6.17060223,103.78,103.75,3.57991712]
[1770039451106,6.17060223,103.78,103.76,3.57991712]
[1770039451405,6.17060223,103.78,103.7,30.52207869]
[1770039451406,0.1,103.8,103.77,3.57991712]
[1770039451603,0.1,103.8,103.78,3.57991712]
[1770039452403,0.6,103.8,103.78,3.57991712]
[1770039453107,0.1,103.8,103.78,3.57991712]
[1770039453610,0.1,103.8,103.77,3.57991712]
[1770039454211,0.1,103.8,103.76,3.57991712]
[1770039454212,0.6,103.8,103.76,3.57991712]
[1770039454404,4.17991712,103.8,103.76,3.57991712]
[1770039454606,0.5,103.79,103.76,3.57991712]
[1770039455191,0.5,103.79,103.75,3.57991712]
[1770039456209,0.5,103.78,103.75,3.57991712]
[1770039457615,0.5,103.79,103.76,3.57991712]
[1770039457914,0.6,103.8,103.77,3.57991712]
[1770039458806,0.6,103.8,103.76,3.57991712]
[1770039459315,0.6,103.8,103.77,3.57991712]
[1770039460424,0.1,103.81,103.78,4.07709039]
[1770039460716,0.1,103.81,103.79,3.57991712]
[1770039462000,0.1,103.81,103.78,4.07709039]
[1770039462200,0.1,103.81,103.77,4.07709039]
[1770039462422,0.1,103.81,103.76,4.07709039]
[1770039462423,0.49697441,103.8,103.76,4.07709039]
[1770039462724,0.49697441,103.8,103.77,4.07709039]
[1770039463224,0.1,103.81,103.79,3.57991712]
[1770039463517,0.1,103.81,103.79,4.07709039]
[1770039464316,0.49697441,103.83,103.8,4.07709039]
[1770039464516,0.49697441,103.84,103.81,3.57991712]
[1770039464816,0.49697441,103.85,103.82,3.57991712]
[1770039465322,0.49697441,103.85,103.83,3.57991712]
[1770039465505,0.49697441,103.85,103.8,0.4]
[1770039465827,0.49697441,103.84,103.81,3.57991712]
[1770039466396,0.49697441,103.84,103.81,8.92612055]
[1770039466602,0.49697441,103.84,103.8,8.92612055]
[1770039466603,0.49697441,103.83,103.8,8.92612055]
[1770039467518,0.49697441,103.83,103.79,9.32612055]
[1770039467920,0.49697441,103.83,103.8,9.32612055]
[1770039468119,0.49697441,103.84,103.81,8.92612055]
[1770039469920,8.92612055,103.86,103.81,9.32612055]
[1770039470122,0.48665521,103.85,103.81,9.32612055]
[1770039470330,0.48665521,103.84,103.81,9.32612055]
[1770039471026,0.48665521,103.86,103.83,8.92612055]
[1770039471722,0.46318328,103.85,103.81,0.4]
[1770039471914,0.46318328,103.85,103.82,9.32612055]
[1770039473323,0.46318328,103.85,103.82,8.92612055]
[1770039473525,0.46318328,103.84,103.8,9.32612055]
[1770039474533,0.46318328,103.84,103.81,9.32612055]
[1770039475325,0.46318328,103.85,103.82,8.92612055]
[1770039475633,0.46318328,103.85,103.81,9.32612055]
[1770039476026,0.46318328,103.85,103.8,9.32612055]
[1770039476027,0.46318328,103.84,103.8,9.32612055]
[1770039476206,0.46318328,103.83,103.8,0.4]
[1770039476411,0.46318328,103.83,103.8,9.32612055]
[1770039477315,0.46318328,103.84,103.81,9.32612055]
[1770039478140,0.46318328,103.84,103.81,8.92612055]
[1770039478359,0.46318328,103.83,103.79,9.32612055]
[1770039478527,0.46318328,103.82,103.79,9.32612055]
[1770039480934,0.46318328,103.82,103.79,8.92612055]
[1770039481429,0.46318328,103.82,103.79,9.32612055]
[1770039481810,0.46318328,103.83,103.8,8.92612055]
[1770039482010,0.46318328,103.82,103.78,0.4]
[1770039482416,0.46318328,103.82,103.8,8.92612055]
[1770039482944,0.46318328,103.82,103.79,9.32612055]
[1770039483316,0.46318328,103.82,103.8,8.92612055]
[1770039483728,0.46318328,103.84,103.81,9.32612055]
[1770039484328,0.46318328,103.85,103.82,8.92612055]
[1770039484738,0.46318328,103.85,103.81,9.32612055]
[1770039485420,0.46318328,103.84,103.81,8.92612055]
[1770039485821,0.46318328,103.84,103.81,9.32612055]
[1770039486033,0.46318328,103.83,103.79,9.32612055]
[1770039486337,0.46318328,103.84,103.81,9.32612055]
[1770039486543,0.46318328,103.85,103.8,0.4]
[1770039486716,0.46318328,103.85,103.81,3.97035262]
[1770039486922,0.46318328,103.85,103.82,3.97035262]
[1770039487734,0.46318328,103.85,103.81,0.4]
[1770039488043,0.46318328,103.84,103.8,3.97035262]
[1770039488522,0.46318328,103.83,103.8,3.57092576]
[1770039488918,0.46318328,103.83,103.8,3.97092576]
[1770039489130,0.46318328,103.83,103.8,3.57092576]
[1770039489936,0.46318328,103.83,103.79,3.97092576]
[1770039490133,0.46318328,103.83,103.79,0.4]
[1770039490340,0.46318328,103.83,103.8,3.97092576]
[1770039490917,0.46318328,103.85,103.81,3.97504377]
[1770039491140,0.46318328,103.85,103.81,3.57092576]
[1770039491335,0.46318328,103.84,103.8,58.97504377]
[1770039492626,0.46318328,103.83,103.8,55.0]
[1770039492826,0.46318328,103.83,103.8,55.42996706]
[1770039493227,0.46318328,103.83,103.79,4.00089282]
[1770039493429,0.46318328,103.81,103.77,4.00089282]
[1770039493633,0.46318328,103.79,103.75,4.00089282]
[1770039493937,4.27527085,103.84,103.77,0.44267117]
[1770039493938,0.46318328,103.81,103.77,0.44267117]
[1770039494139,0.46318328,103.81,103.77,4.01359693]
[1770039494339,0.46318328,103.8,103.77,4.01359693]
[1770039494527,0.46318328,103.8,103.77,0.44267117]
[1770039494728,0.46318328,103.8,103.77,4.01359693]
[1770039494928,4.03410904,103.8,103.76,4.02616023]
[1770039495444,0.46318328,103.79,103.75,4.02616023]
[1770039496160,0.46318328,103.8,103.76,4.038575]
[1770039496522,4.03410904,103.8,103.76,4.038575]
[1770039496724,0.46318328,103.79,103.75,0.46764924]
[1770039496924,0.46318328,103.77,103.74,4.05084789]
[1770039497349,4.03410904,103.78,103.74,0.47992213]
[1770039497562,0.46318328,103.77,103.74,0.47992213]
[1770039497722,4.03410904,103.78,103.74,0.47992213]
[1770039498744,0.46318328,103.77,103.74,0.47992213]
[1770039499048,4.03410904,103.77,103.74,0.47992213]
[1770039499529,4.03410904,103.77,103.73,4.06488578]
[1770039499928,4.03410904,103.76,103.72,4.06488578]
[1770039500130,0.46318328,103.75,103.72,0.49396002]
[1770039500324,4.03410904,103.75,103.72,0.49396002]
[1770039500531,4.03410904,103.75,103.71,0.49396002]
[1770039500742,7.84619661,103.8,103.7,3.77092576]
[1770039500743,0.46318328,103.73,103.7,0.69396002]
[1770039500935,7.84619661,103.8,103.7,0.2]
[1770039500936,0.46318328,103.72,103.7,0.2]
[1770039503150,4.03410904,103.72,103.7,0.2]
[1770039503349,4.12940434,103.71,103.68,0.49396002]
[1770039503736,4.12940434,103.7,103.67,0.53436417]
[1770039503936,0.55847858,103.69,103.65,4.10528993]
[1770039504248,0.55847858,103.69,103.66,0.53436417]
[1770039504430,4.12940434,103.7,103.66,4.10528993]
[1770039504629,0.55847858,103.69,103.66,0.53436417]
[1770039504856,4.12940434,103.7,103.66,0.53436417]
[1770039505150,4.12940434,103.71,103.67,4.10528993]
[1770039505449,0.55847858,103.71,103.67,4.10528993]
[1770039505646,4.12940434,103.71,103.67,4.10528993]
[1770039505847,4.12940434,103.71,103.67,0.53436417]
[1770039506347,0.55847858,103.71,103.68,0.53436417]
[1770039506550,0.55847858,103.7,103.66,4.10528993]
[1770039507750,4.12940434,103.7,103.66,0.53436417]
[1770039508156,4.12940434,103.7,103.66,4.10528993]
[1770039509139,0.55847858,103.7,103.66,4.10528993]
[1770039509338,0.55847858,103.7,103.67,4.10528993]
[1770039511437,4.12940434,103.7,103.66,4.10528993]
[1770039511638,4.12940434,103.7,103.66,0.53436417]
[1770039512158,0.55847858,103.68,103.65,0.53436417]
[1770039512455,0.55847858,103.67,103.64,0.73436417]
[1770039512655,0.55847858,103.67,103.64,4.30528993]
[1770039513758,4.12940434,103.66,103.64,0.2]
[1770039514061,4.12940434,103.67,103.64,0.2]
[1770039516854,0.55847858,103.66,103.64,0.2]
[1770039518880,4.12940434,103.67,103.64,0.2]
[1770039519163,0.55847858,103.66,103.64,0.2]
[1770039520246,0.55847858,103.66,103.62,3.57092576]
[1770039520247,0.55847858,103.65,103.61,0.53436417]
[1770039520467,0.55847858,103.64,103.61,0.53436417]
[1770039520646,4.12940434,103.64,103.61,0.53436417]
[1770039521750,0.55847858,103.64,103.61,0.53436417]
[1770039523466,4.27527085,103.69,103.61,0.53436417]
[1770039523661,3.57092576,103.65,103.61,0.53436417]
[1770039523858,3.57092576,103.65,103.62,0.53436417]
[1770039524168,3.57092576,103.65,103.61,0.53436417]
[1770039525459,0.55847858,103.63,103.6,0.53436417]
[1770039525765,0.55847858,103.64,103.61,0.53436417]
[1770039525971,4.12940434,103.64,103.61,0.53436417]
[1770039526170,0.55847858,103.65,103.62,4.10528993]
[1770039527365,0.55847858,103.65,103.62,0.53436417]
[1770039529474,0.68742828,103.64,103.59,0.79846661]
[1770039529770,4.25835404,103.63,103.6,0.65630504]
[1770039529949,0.68742828,103.63,103.6,0.65630504]
[1770039530351,0.68742828,103.65,103.6,4.2272308]
[1770039530572,0.68742828,103.65,103.62,0.65630504]
[1770039532268,0.71608016,103.67,103.64,0.70273761]
[1770039533875,4.28700592,103.67,103.64,0.70273761]
[1770039534070,0.71608016,103.65,103.62,0.70273761]
[1770039534272,4.28700592,103.65,103.62,0.70273761]
[1770039535474,4.28700592,103.67,103.63,0.70273761]
[1770039535680,0.71608016,103.66,103.63,0.70273761]
[1770039535854,4.28700592,103.66,103.63,0.70273761]
[1770039536371,4.28700592,103.65,103.61,0.70273761]
[1770039537269,0.71608016,103.64,103.61,0.70273761]
[1770039537873,3.57092576,103.65,103.62,0.70273761]
[1770039537874,4.28700592,103.65,103.62,0.70273761]
[1770039538456,0.71608016,103.65,103.62,0.70273761]
[1770039538652,4.28700592,103.65,103.62,0.70273761]
[1770039538859,0.71608016,103.65,103.62,4.27366337]
[1770039539476,0.71608016,103.66,103.63,0.70273761]
[1770039539672,0.71608016,103.66,103.63,4.27366337]
[1770039539871,0.71608016,103.66,103.63,0.70273761]
[1770039540375,3.57092576,103.65,103.61,4.27366337]
[1770039540583,0.71608016,103.64,103.61,0.70273761]
[1770039540880,30.39092576,103.7,103.59,4.27366337]
[1770039540881,0.71608016,103.62,103.59,4.27366337]
[1770039541073,0.71608016,103.62,103.59,0.70273761]
[1770039541462,4.28700592,103.62,103.59,0.70273761]
[1770039541656,4.28700592,103.61,103.58,0.70273761]
[1770039542059,4.28700592,103.6,103.57,0.70273761]
[1770039542264,0.71608016,103.6,103.57,0.70273761]
[1770039542465,4.28700592,103.6,103.57,0.70273761]
[1770039542669,0.71608016,103.6,103.57,0.70273761]
[1770039542860,0.71608016,103.61,103.57,4.27366337]
[1770039543055,4.28700592,103.61,103.57,4.27366337]
[1770039543676,0.71608016,103.6,103.57,0.70273761]
[1770039544058,0.71608016,103.59,103.56,4.47366337]
[1770039544458,0.71608016,103.59,103.56,0.90273761]
[1770039545284,4.28700592,103.6,103.57,0.70273761]
[1770039545985,0.71608016,103.59,103.56,0.90273761]
[1770039550567,0.71608016,103.59,103.54,0.2]
[1770039550779,0.71608016,103.54,103.51,2.5982748]
[1770039551081,4.30367744,103.54,103.51,2.5982748]
[1770039552271,0.71608016,103.53,103.51,2.5982748]
[1770039553275,0.71608016,103.54,103.51,3.30101241]
[1770039553476,4.30367744,103.54,103.51,3.30101241]
[1770039553668,4.30367744,103.54,103.51,2.5982748]
[1770039554307,4.30367744,103.54,103.51,3.30101241]
[1770039554308,0.71608016,103.54,103.51,3.30101241]
[1770039554778,4.27527085,103.57,103.51,2.5982748]
[1770039554996,0.83016765,103.58,103.56,3.58759728]
[1770039555390,0.83016765,103.58,103.54,3.58759728]
[1770039555695,0.83016765,103.57,103.53,3.58759728]
[1770039555873,0.83016765,103.59,103.55,3.61766959]
[1770039556070,0.83016765,103.59,103.56,3.58759728]
[1770039556481,0.83016765,103.59,103.55,3.61766959]
[1770039557292,0.83016765,103.59,103.56,3.58759728]
[1770039557999,0.83016765,103.59,103.55,30.45766959]
[1770039558808,0.83016765,103.59,103.55,30.42759728]
[1770039559098,0.83016765,103.58,103.55,26.84]
[1770039560296,0.83016765,103.58,103.54,30.50152064]
[1770039560595,0.83016765,103.58,103.55,3.58759728]
[1770039561706,0.83016765,103.59,103.56,3.58759728]
[1770039562410,0.83016765,103.59,103.55,3.7039468]
[1770039563088,0.83016765,103.59,103.56,3.58759728]
[1770039564397,0.83016765,103.59,103.55,3.58759728]
[1770039564609,0.83016765,103.56,103.51,2.75554185]
[1770039564903,0.83016765,103.56,103.53,3.58759728]
[1770039565405,0.83016765,103.56,103.52,3.75819162]
[1770039565710,0.83016765,103.56,103.53,3.58759728]
[1770039567992,0.83016765,103.56,103.52,0.17059434]
[1770039568298,0.83016765,103.56,103.52,3.58759728]
[1770039569180,0.83016765,103.54,103.51,2.5982748]
[1770039571392,4.27527085,103.59,103.51,2.5982748]
[1770039571393,0.83016765,103.56,103.52,0.24744199]
[1770039571596,0.83016765,103.56,103.52,3.83503927]
[1770039571974,0.83016765,103.56,103.52,3.58759728]
[1770039572690,0.83016765,103.56,103.51,39.35876793]
[1770039572691,0.83016765,103.55,103.51,6.18587208]